fUSD/lending_fUSD_20250804
["ID","MTS","AMOUNT","RATE_DAILY","PERIOD"]
[377169048,1754266258293,-400.0,0.00049589,120]
[377169049,1754266258303,-536.41,0.00049589,120]
[377169050,1754266258313,-400.0,0.00049589,120]
[377169051,1754266258322,-400.0,0.00049589,120]
[377169052,1754266258331,-755.04,0.00049589,120]
[377169053,1754266258341,-980.28,0.00049589,120]
[377169054,1754266258351,-400.0,0.00049589,120]
[377169055,1754266258361,-713.47,0.00049589,120]
[377169056,1754266258370,-514.06,0.00049589,120]
[377169057,1754266258380,-465.47,0.00049589,120]
[377169058,1754266258390,-486.82,0.00049589,120]
[377169059,1754266258400,-400.0,0.00049589,120]
[377169060,1754266258409,-414.45,0.00049589,120]
[377169061,1754266258420,-400.0,0.00049589,120]
[377169062,1754266258430,-400.0,0.00049589,120]
[377169063,1754266258439,-400.0,0.00049589,120]
[377169064,1754266258449,-400.0,0.00049589,120]
[377169065,1754266258458,-400.0,0.00049589,120]
[377169066,1754266258469,-792.77,0.00049589,120]
[377169067,1754266258478,-981.8,0.00049589,120]
[377169068,1754266258487,-400.0,0.00049589,120]
[377169069,1754266258497,-400.0,0.00049589,120]
[377169070,1754266258506,-400.0,0.00049589,120]
[377169071,1754266258516,-400.0,0.00049589,120]
[377169072,1754266258525,-400.0,0.00049589,120]
[377169073,1754266258535,-400.0,0.00049589,120]
[377169074,1754266258544,-956.64,0.00049589,120]
[377169075,1754266258554,-400.0,0.00049589,120]
[377169076,1754266258563,-400.0,0.00049589,120]
[377169077,1754266258573,-724.66,0.00049589,120]
[377169078,1754266258582,-428.13,0.00049589,120]
[377169079,1754266258592,-525.48,0.00049589,120]
[377169080,1754266258601,-622.39,0.00049589,120]
[377169081,1754266258611,-510.92,0.00049589,120]
[377169082,1754266258620,-879.31,0.00049589,120]
[377169083,1754266258629,-400.0,0.00049589,120]
[377169084,1754266258639,-400.0,0.00049589,120]
[377169085,1754266258648,-400.0,0.00049589,120]
[377169086,1754266258658,-400.0,0.00049589,120]
[377169087,1754266258667,-749.13,0.00049589,120]
[377169088,1754266258677,-400.0,0.00049589,120]
[377169089,1754266258687,-400.0,0.00049589,120]
[377169090,1754266258696,-388.94653582,0.00049589,120]
[377169091,1754266258706,-415.70312919,0.00049589,120]
[377169092,1754266258715,-400.0,0.00049589,120]
[377169093,1754266258730,-414.07,0.00049589,120]
[377169094,1754266258740,-400.0,0.00049589,120]
[377169095,1754266258750,-1211.33,0.00049589,120]
[377169096,1754266258759,-565.42,0.00049589,120]
[377169097,1754266258769,-400.0,0.00049589,120]
[377169098,1754266258779,-400.0,0.00049589,120]
[377169099,1754266258788,-400.0,0.00049589,120]
[377169100,1754266258798,-400.0,0.00049589,120]
[377169101,1754266258807,-400.0,0.00049589,120]
[377169102,1754266258817,-627.86,0.00049589,120]
[377169103,1754266258827,-400.0,0.00049589,120]
[377169104,1754266258836,-641.45,0.00049589,120]
[377169105,1754266258845,-1018.34,0.00049589,120]
[377169106,1754266258855,-400.0,0.00049589,120]
[377169107,1754266258865,-400.0,0.00049589,120]
[377169108,1754266258875,-804.57,0.00049589,120]
[377169109,1754266258886,-689.84,0.00049589,120]
[377169110,1754266258896,-456.99,0.00049589,120]
[377169111,1754266258905,-1009.49,0.00049589,120]
[377169112,1754266258915,-400.0,0.00049589,120]
[377169113,1754266258924,-400.0,0.00049589,120]
[377169114,1754266258935,-574.89,0.00049589,120]
[377169115,1754266258945,-400.0,0.00049589,120]
[377169116,1754266258955,-400.0,0.00049589,120]
[377169117,1754266258965,-391.62732221,0.00049589,120]
[377169118,1754266258975,-400.0,0.00049589,120]
[377169119,1754266258986,-400.0,0.00049589,120]
[377169120,1754266258996,-611.13,0.00049589,120]
[377169121,1754266259005,-400.0,0.00049589,120]
[377169122,1754266259015,-400.0,0.00049589,120]
[377169123,1754266259024,-400.0,0.00049589,120]
[377169124,1754266259034,-940.95,0.00049589,120]
[377169125,1754266259043,-1183.69,0.00049589,120]
[377169126,1754266259053,-594.33,0.00049589,120]
[377169127,1754266259063,-421.41,0.00049589,120]
[377169128,1754266259073,-704.1,0.00049589,120]
[377169129,1754266259082,-950.98,0.00049589,120]
[377169130,1754266259092,-901.35,0.00049589,120]
[377169131,1754266259102,-1019.94,0.00049589,120]
[377169132,1754266259112,-657.96,0.00049589,120]
[377169133,1754266259121,-400.0,0.00049589,120]
[377169134,1754266259131,-400.0,0.00049589,120]
[377169135,1754266259140,-632.37,0.00049589,120]
[377169136,1754266259152,-400.0,0.00049589,120]
[377169137,1754266259162,-400.0,0.00049589,120]
[377169138,1754266259171,-687.15,0.00049589,120]
[377169139,1754266259181,-400.0,0.00049589,120]
[377169140,1754266259194,-557.5,0.00049589,120]
[377169141,1754266259203,-400.0,0.00049589,120]
[377169142,1754266259213,-165.40795749,0.00049589,120]
[377169143,1754266259222,-992.38,0.00049589,120]
[377169144,1754266259234,-400.0,0.00049589,120]
[377169145,1754266259244,-313.1959948,0.00049589,120]
[377169146,1754266259255,-529.68,0.00049589,120]
[377169147,1754266259266,-1191.75,0.00049589,120]
[377169148,1754266259276,-1612.16,0.00049589,120]
[377169149,1754266259286,-650.27,0.00049589,120]
[377169150,1754266259296,-400.0,0.00049589,120]
[377169151,1754266259305,-400.0,0.00049589,120]
[377169152,1754266259315,-872.85,0.00049589,120]
[377169153,1754266259324,-549.06,0.00049589,120]
[377169154,1754266259333,-808.65,0.00049589,120]
[377169155,1754266259343,-400.0,0.00049589,120]
[377169156,1754266259353,-400.0,0.00049589,120]
[377169157,1754266259363,-400.0,0.00049589,120]
[377169158,1754266259373,-881.83,0.00049589,120]
[377169159,1754266259388,-616.24,0.00049589,120]
[377169160,1754266259398,-400.0,0.00049589,120]
[377169161,1754266259408,-400.0,0.00049589,120]
[377169162,1754266259422,-400.0,0.00049589,120]
[377169163,1754266259432,-400.0,0.00049589,120]
[377169164,1754266259442,-400.0,0.00049589,120]
[377169165,1754266259452,-400.0,0.00049589,120]
[377169166,1754266259462,-927.89,0.00049589,120]
[377169167,1754266259471,-468.62614119,0.00049589,120]
[377169168,1754266259482,-996.8,0.00049589,120]
[377169169,1754266259492,-400.0,0.00049589,120]
[377169170,1754266259501,-4720.31,0.00049589,120]
[377169171,1754266259511,-306.67554252,0.00049589,120]
[377169172,1754266259521,-480.32,0.00049589,120]
[377169173,1754266259531,-458.53,0.00049589,120]
[377169174,1754266259541,-461.86,0.00049589,120]
[377169175,1754266259551,-400.0,0.00049589,120]
[377169176,1754266259561,-4894.61,0.00049589,120]
[377169177,1754266259571,-400.0,0.00049589,120]
[377169178,1754266259581,-400.0,0.00049589,120]
[377169179,1754266259590,-400.0,0.00049589,120]
[377169180,1754266259600,-674.67,0.00049589,120]
[377169181,1754266259610,-1033.94,0.00049589,120]
[377169182,1754266259620,-816.6,0.00049589,120]
[377169183,1754266259629,-925.44,0.00049589,120]
[377169184,1754266259639,-400.0,0.00049589,120]
[377169185,1754266259649,-400.0,0.00049589,120]
[377169186,1754266259659,-698.79,0.00049589,120]
[377169187,1754266259668,-400.0,0.00049589,120]
[377169188,1754266259678,-203.31804753,0.00049589,120]
[377169189,1754266259688,-1162.3,0.00049589,120]
[377169190,1754266259700,-536.25,0.00049589,120]
[377169191,1754266259710,-400.0,0.00049589,120]
[377169192,1754266259720,-400.0,0.00049589,120]
[377169193,1754266259731,-400.0,0.00049589,120]
[377169194,1754266259741,-769.97,0.00049589,120]
[377169195,1754266259752,-833.01,0.00049589,120]
[377169196,1754266259762,-402.93289295,0.00049589,120]
[377169197,1754266259772,-384.88765484,0.00049589,120]
[377169198,1754266259782,-453.6,0.00049589,120]
[377169199,1754266259791,-400.0,0.00049589,120]
[377169200,1754266259801,-400.0,0.00049589,120]
[377169201,1754266259810,-400.0,0.00049589,120]
[377169202,1754266259820,-1111.54,0.00049589,120]
[377169203,1754266259829,-556.87,0.00049589,120]
[377169204,1754266259839,-400.0,0.00049589,120]
[377169205,1754266259850,-899.69,0.00049589,120]
[377169206,1754266259860,-1730.61,0.00049589,120]
[377169207,1754266259869,-400.0,0.00049589,120]
[377169208,1754266259879,-732.85,0.00049589,120]
[377169209,1754266259888,-1461.35,0.00049589,120]
[377169210,1754266259898,-590.27,0.00049589,120]
[377169211,1754266259907,-901.32,0.00049589,120]
[377169212,1754266259917,-400.0,0.00049589,120]
[377169213,1754266259927,-901.95,0.00049589,120]
[377169214,1754266259936,-400.0,0.00049589,120]
[377169215,1754266259946,-400.0,0.00049589,120]
[377169216,1754266259955,-723.26,0.00049589,120]
[377169217,1754266259965,-400.0,0.00049589,120]
[377169218,1754266259975,-1592.92,0.00049589,120]
[377169219,1754266259986,-673.26,0.00049589,120]
[377169220,1754266259996,-400.0,0.00049589,120]
[377169221,1754266260006,-400.0,0.00049589,120]
[377169222,1754266260015,-1601.2,0.00049589,120]
[377169223,1754266260025,-412.28,0.00049589,60]
[377169224,1754266260035,-706.22,0.00049589,120]
[377169225,1754266260044,-400.0,0.00049589,120]
[377169226,1754266260055,-402.87135158,0.00049589,120]
[377169227,1754266260064,-400.0,0.00049589,120]
[377169228,1754266260074,-400.0,0.00049589,120]
[377169229,1754266260084,-400.0,0.00049589,120]
[377169230,1754266260093,-400.0,0.00049589,120]
[377169231,1754266260103,-400.0,0.00049589,120]
[377169232,1754266260113,-278.18129754,0.00049589,120]
[377169233,1754266260123,-912.88,0.00049589,120]
[377169234,1754266260132,-949.81,0.00049589,120]
[377169235,1754266260142,-949.81,0.00049589,120]
[377169236,1754266260152,-400.0,0.00049589,120]
[377169237,1754266260162,-400.0,0.00049589,120]
[377169238,1754266260171,-1484.94,0.00049589,120]
[377169239,1754266260182,-1173.53,0.00049589,120]
[377169240,1754266260196,-400.0,0.00049589,120]
[377169241,1754266260206,-400.0,0.00049589,120]
[377169242,1754266260216,-347.06976081,0.00049589,120]
[377169243,1754266260227,-468.42169244,0.00049589,120]
[377169244,1754266260238,-2314.15,0.00049589,120]
[377169245,1754266260249,-492.77,0.00049589,120]
[377169246,1754266260260,-400.0,0.00049589,120]
[377169247,1754266260272,-400.0,0.00049589,120]
[377169248,1754266260282,-400.0,0.00049589,120]
[377169249,1754266260300,-1462.45,0.00049589,120]
[377169250,1754266260310,-647.53,0.00049589,120]
[377169251,1754266260319,-1341.89,0.00049589,120]
[377169252,1754266260328,-1068.21,0.00049589,120]
[377169253,1754266260338,-5234.91,0.00049589,120]
[377169254,1754266260348,-1119.42,0.00049589,120]
[377169255,1754266260357,-400.0,0.00049589,120]
[377169256,1754266260367,-300.0,0.00049589,120]
[377169257,1754266260376,-1331.67,0.00049589,120]
[377169258,1754266260386,-1328.2,0.00049589,120]
[377169259,1754266260396,-400.0,0.00049589,120]
[377169260,1754266260406,-1001.16,0.00049589,120]
[377169261,1754266260416,-571.91,0.00049589,120]
[377169262,1754266260426,-400.0,0.00049589,120]
[377169263,1754266260435,-955.48,0.00049589,120]
[377169264,1754266260444,-1578.35,0.00049589,120]
[377169265,1754266260454,-409.14,0.00049589,120]
[377169266,1754266260464,-1005.19,0.00049589,120]
[377169267,1754266260804,-675.29,0.00049589,120]
[377169268,1754266260815,-598.03,0.00049589,120]
[377169269,1754266260825,-400.0,0.00049589,120]
[377169270,1754266260835,-400.0,0.00049589,120]
[377169271,1754266261056,-817.11,0.00049589,120]
[377169272,1754266261066,-870.48,0.00049589,120]
[377169273,1754266261076,-400.0,0.00049589,120]
[377169274,1754266261085,-400.0,0.00049589,120]
[377169275,1754266261095,-523.8,0.00049589,120]
[377169276,1754266261105,-1073.59,0.00049589,120]
[377169277,1754266261114,-653.93,0.00049589,120]
[377169278,1754266261124,-524.6,0.00049589,120]
[377169279,1754266261134,-493.21,0.00049589,120]
[377169280,1754266261143,-400.0,0.00049589,120]
[377169281,1754266261153,-1126.78,0.00049589,120]
[377169282,1754266261162,-400.0,0.00049589,120]
[377169283,1754266261171,-1000.0,0.00049589,120]
[377169284,1754266261181,-415.07,0.00049589,120]
[377169285,1754266261193,-604.01,0.00049589,120]
[377169286,1754266261203,-977.29,0.00049589,120]
[377169287,1754266261213,-534.65,0.00049589,120]
[377169288,1754266261222,-400.0,0.00049589,120]
[377169289,1754266261231,-400.0,0.00049589,120]
[377169290,1754266261242,-163.268808,0.00049589,120]
[377169291,1754266261252,-400.0,0.00049589,120]
[377169292,1754266261263,-1489.88,0.00049589,120]
[377169293,1754266261273,-400.0,0.00049589,120]
[377169294,1754266261282,-400.0,0.00049589,120]
[377169295,1754266261292,-400.0,0.00049589,120]
[377169296,1754266261302,-400.0,0.00049589,120]
[377169297,1754266261311,-203.99811644,0.00049589,120]
[377169298,1754266261320,-400.0,0.00049589,120]
[377169299,1754266261330,-400.0,0.00049589,120]
[377169300,1754266261339,-400.0,0.00049589,120]
[377169301,1754266261349,-400.0,0.00049589,120]
[377169302,1754266261358,-474.72,0.00049589,120]
[377169303,1754266261368,-581.15,0.00049589,120]
[377169304,1754266261378,-438.5,0.00049589,120]
[377169305,1754266261387,-5373.27,0.00049589,120]
[377169306,1754266261397,-400.0,0.00049589,120]
[377169307,1754266261406,-400.0,0.00049589,120]
[377169308,1754266261416,-721.19,0.00049589,120]
[377169309,1754266261426,-3835.37,0.00049589,120]
[377169310,1754266261435,-398.11642932,0.00049589,120]
[377169311,1754266261445,-834.22,0.00049589,120]
[377169312,1754266261454,-716.24,0.00049589,120]
[377169313,1754266261463,-1134.6,0.00049589,120]
[377169314,1754266261473,-415.22412944,0.00049589,120]
[377169315,1754266261486,-400.0,0.00049589,120]
[377169316,1754266261495,-400.0,0.00049589,120]
[377169317,1754266261506,-400.0,0.00049589,120]
[377169318,1754266261516,-1049.57,0.00049589,120]
[377169319,1754266261525,-400.0,0.00049589,120]
[377169320,1754266261535,-400.0,0.00049589,120]
[377169321,1754266261545,-587.26,0.00049589,120]
[377169322,1754266261555,-400.0,0.00049589,120]
[377169323,1754266261565,-2012.25,0.00049589,120]
[377169324,1754266261575,-400.0,0.00049589,120]
[377169325,1754266261584,-567.39,0.00049589,120]
[377169326,1754266261594,-1390.5,0.00049589,120]
[377169327,1754266261604,-400.0,0.00049589,120]
[377169328,1754266261614,-400.0,0.00049589,120]
[377169329,1754266261623,-539.14,0.00049589,120]
[377169330,1754266261632,-400.0,0.00049589,120]
[377169331,1754266261642,-400.0,0.00049589,120]
[377169332,1754266261651,-400.0,0.00049589,120]
[377169333,1754266261661,-682.42,0.00049589,120]
[377169334,1754266261671,-1877.89,0.00049589,120]
[377169335,1754266261681,-400.0,0.00049589,120]
[377169336,1754266261690,-891.04,0.00049589,120]
[377169337,1754266261700,-400.0,0.00049589,120]
[377169338,1754266261710,-400.0,0.00049589,120]
[377169339,1754266261720,-808.31,0.00049589,120]
[377169340,1754266261730,-400.0,0.00049589,120]
[377169341,1754266261742,-400.0,0.00049589,120]
[377169342,1754266261751,-400.0,0.00049589,120]
[377169343,1754266261761,-476.3,0.00049589,120]
[377169344,1754266261771,-400.0,0.00049589,120]
[377169345,1754266261780,-400.0,0.00049589,120]
[377169346,1754266261790,-538.34,0.00049589,120]
[377169347,1754266261799,-1187.72,0.00049589,120]
[377169348,1754266261809,-269.47630603,0.00049589,120]
[377169349,1754266261818,-965.14,0.00049589,120]
[377169350,1754266261828,-419.41,0.00049589,120]
[377169351,1754266261838,-400.0,0.00049589,120]
[377169352,1754266261848,-417.19,0.00049589,120]
[377169353,1754266261857,-400.0,0.00049589,120]
[377169354,1754266261867,-400.0,0.00049589,120]
[377169355,1754266261877,-1401.09,0.00049589,14]
[377169356,1754266261886,-400.0,0.00049589,120]
[377169357,1754266261896,-400.0,0.00049589,120]
[377169358,1754266261905,-400.0,0.00049589,120]
[377169359,1754266261915,-400.0,0.00049589,120]
[377169360,1754266261926,-400.0,0.00049589,120]
[377169361,1754266261938,-400.0,0.00049589,120]
[377169362,1754266261950,-721.72,0.00049589,120]
[377169363,1754266261961,-400.0,0.00049589,120]
[377169364,1754266261970,-400.0,0.00049589,120]
[377169365,1754266261980,-723.66,0.00049589,120]
[377169366,1754266261992,-1155.19,0.00049589,120]
[377169367,1754266262003,-400.0,0.00049589,120]
[377169368,1754266262012,-372.22442167,0.00049589,120]
[377169369,1754266262022,-400.0,0.00049589,120]
[377169370,1754266262032,-400.0,0.00049589,120]
[377169371,1754266262041,-699.31,0.00049589,120]
[377169372,1754266262051,-439.33,0.00049589,120]
[377169373,1754266262061,-1229.41,0.00049589,120]
[377169374,1754266262070,-400.0,0.00049589,120]
[377169375,1754266262080,-400.0,0.00049589,120]
[377169376,1754266262089,-251.62640516,0.00049589,120]
[377169377,1754266262099,-400.0,0.00049589,120]
[377169378,1754266262108,-400.0,0.00049589,120]
[377169379,1754266262118,-510.4,0.00049589,120]
[377169380,1754266262128,-400.0,0.00049589,120]
[377169381,1754266262138,-1673.0,0.00049589,120]
[377169382,1754266262148,-400.0,0.00049589,120]
[377169383,1754266262159,-400.0,0.00049589,120]
[377169384,1754266262169,-400.0,0.00049589,120]
[377169385,1754266262179,-473.61,0.00049589,120]
[377169386,1754266262192,-400.0,0.00049589,120]
[377169387,1754266262201,-400.0,0.00049589,120]
[377169388,1754266262210,-400.0,0.00049589,120]
[377169389,1754266262220,-203.75118753,0.00049589,120]
[377169390,1754266262231,-482.29,0.00049589,120]
[377169391,1754266262243,-735.11,0.00049589,120]
[377169392,1754266262252,-1502.49,0.00049589,120]
[377169393,1754266262264,-2886.78,0.00049589,120]
[377169394,1754266262274,-1013.66,0.00049589,120]
[377169395,1754266262283,-531.2378665,0.00049589,120]
[377169396,1754266262293,-2668.08,0.00049589,120]
[377169397,1754266262303,-1392.39,0.00049589,120]
[377169398,1754266262312,-400.0,0.00049589,120]
[377169399,1754266262321,-400.0,0.00049589,120]
[377169400,1754266262331,-500.0,0.00049589,120]
[377169401,1754266262340,-875.34,0.00049589,120]
[377169402,1754266262350,-400.0,0.00049589,120]
[377169403,1754266262360,-400.0,0.00049589,120]
[377169404,1754266262370,-1070.15,0.00049589,120]
[377169405,1754266262379,-510.32,0.00049589,120]
[377169406,1754266262389,-1043.21,0.00049589,120]
[377169407,1754266262398,-400.0,0.00049589,120]
[377169408,1754266262408,-400.0,0.00049589,120]
[377169409,1754266262418,-939.51,0.00049589,120]
[377169410,1754266262427,-246.8951167,0.00049589,120]
[377169411,1754266262436,-400.0,0.00049589,120]
[377169412,1754266262446,-400.0,0.00049589,120]
[377169413,1754266262457,-400.0,0.00049589,120]
[377169414,1754266262466,-400.0,0.00049589,120]
[377169415,1754266262476,-400.0,0.00049589,120]
[377169416,1754266262487,-400.0,0.00049589,120]
[377169417,1754266262496,-1204.62,0.00049589,120]
[377169418,1754266262506,-495.85746739,0.00049589,120]
[377169419,1754266262516,-400.0,0.00049589,120]
[377169420,1754266262529,-355.17786622,0.00049589,120]
[377169421,1754266262539,-400.0,0.00049589,120]
[377169422,1754266262551,-1931.51,0.00049589,120]
[377169423,1754266262561,-381.79394503,0.00049589,120]
[377169424,1754266262570,-400.0,0.00049589,120]
[377169425,1754266262579,-400.0,0.00049589,120]
[377169426,1754266262589,-470.9,0.00049589,120]
[377169427,1754266262598,-814.96,0.00049589,120]
[377169428,1754266262607,-957.13,0.00049589,120]
[377169429,1754266262616,-400.0,0.00049589,120]
[377169430,1754266262626,-1167.61,0.00049589,120]
[377169431,1754266262635,-563.89,0.00049589,120]
[377169432,1754266262645,-400.0,0.00049589,120]
[377169433,1754266262654,-1397.09,0.00049589,120]
[377169434,1754266262663,-400.0,0.00049589,120]
[377169435,1754266262672,-3628.27,0.00049589,118]
[377169436,1754266262681,-487.86,0.00049589,120]
[377169437,1754266262691,-400.0,0.00049589,120]
[377169438,1754266262700,-400.0,0.00049589,120]
[377169439,1754266262709,-2413.8,0.00049589,120]
[377169440,1754266262719,-907.23,0.00049589,120]
[377169441,1754266262728,-449.94,0.00049589,120]
[377169442,1754266262739,-400.0,0.00049589,120]
[377169443,1754266262748,-400.0,0.00049589,120]
[377169444,1754266262757,-400.0,0.00049589,120]
[377169445,1754266262766,-400.0,0.00049589,120]
[377169446,1754266262775,-400.0,0.00049589,120]
[377169447,1754266262784,-607.01,0.00049589,120]
[377169448,1754266262794,-344.46763557,0.00049589,120]
[377169449,1754266262803,-400.0,0.00049589,120]
[377169450,1754266262812,-400.0,0.00049589,120]
[377169451,1754266262821,-400.0,0.00049589,120]
[377169452,1754266262830,-435.62,0.00049589,120]
[377169453,1754266262839,-400.0,0.00049589,120]
[377169454,1754266262849,-448.72,0.00049589,120]
[377169455,1754266262858,-753.47,0.00049589,120]
[377169456,1754266262867,-510.59,0.00049589,120]
[377169457,1754266262877,-940.38,0.00049589,120]
[377169458,1754266262886,-1060.88,0.00049589,120]
[377169459,1754266262895,-400.0,0.00049589,120]
[377169460,1754266262904,-400.0,0.00049589,120]
[377169461,1754266262913,-1682.96,0.00049589,120]
[377169462,1754266262923,-612.85,0.00049589,120]
[377169463,1754266262932,-424.27,0.00049589,120]
[377169464,1754266262942,-494.96285838,0.00049589,120]
[377169465,1754266262951,-400.0,0.00049589,120]
[377169466,1754266262961,-400.0,0.00049589,120]
[377169467,1754266262970,-400.0,0.00049589,120]
[377169468,1754266262980,-400.0,0.00049589,120]
[377169469,1754266262991,-3391.8,0.00049589,120]
[377169470,1754266263001,-400.0,0.00049589,120]
[377169471,1754266263010,-27206.45,0.00049589,120]
[377169472,1754266263020,-1092.01,0.00049589,120]
[377169473,1754266263031,-400.0,0.00049589,120]
[377169474,1754266263040,-400.0,0.00049589,120]
[377169475,1754266263050,-400.0,0.00049589,120]
[377169476,1754266263060,-400.0,0.00049589,120]
[377169477,1754266263070,-150.0,0.0004959,2]
[377169478,1754266263080,-515.0,0.00049609,10]
[377169479,1754266263089,-500.0,0.00049657,30]
[377169480,1754266263099,-627.94813824,0.0004975,10]
[377169481,1754266263108,-768.0,0.00049779,60]
[377169482,1754266263118,-866.92394554,0.00049784,120]
[377169483,1754266263128,-1000.0,0.00049797,30]
[377169484,1754266263138,-200.766738,0.000498,120]
[377169485,1754266263148,-200.766738,0.000498,120]
[377169486,1754266263158,-151.0,0.000498,120]
[377169487,1754266263167,-1000.0,0.00049808,30]
[377169488,1754266263177,-1461.643,0.0004982,88]
[377169489,1754266263190,-151.0,0.00049863,120]
[377169490,1754266263200,-151.0,0.00049863,120]
[377169491,1754266263210,-400.0,0.00049863,120]
[377169492,1754266263220,-400.0,0.00049863,120]
[377169493,1754266263231,-1068.84,0.00049863,120]
[377169494,1754266263243,-571.69,0.00049863,120]
[377169495,1754266263252,-400.0,0.00049863,120]
[377169496,1754266263260,-400.0,0.00049863,120]
[377169497,1754266263269,-1099.65,0.00049863,120]
[377169498,1754266263280,-566.06,0.00049863,120]
[377169499,1754266263289,-458.21,0.00049863,120]
[377169500,1754266263299,-400.0,0.00049863,120]
[377169501,1754266263307,-400.0,0.00049863,120]
[377169502,1754266263316,-400.0,0.00049863,120]
[377169503,1754266263325,-400.0,0.00049863,120]
[377169504,1754266263334,-870.993468,0.00049863,120]
[377169505,1754266263344,-400.0,0.00049863,120]
[377169506,1754266263354,-400.0,0.00049863,120]
[377169507,1754266263363,-720.227613,0.00049863,120]
[377169508,1754266263373,-940.144052,0.00049863,120]
[377169509,1754266263383,-400.0,0.00049863,120]
[377169510,1754266263478,-1147.18,0.00049863,120]
[377169511,1754266263490,-157.100014,0.00049863,120]
[377169512,1754266263500,-1083.39,0.00049863,120]
[377169513,1754266263509,-423.23,0.00049863,30]
[377169514,1754266263519,-553.68,0.00049863,120]
[377169515,1754266263528,-400.0,0.00049863,120]
[377169516,1754266263538,-400.0,0.00049863,120]
[377169517,1754266263547,-400.0,0.00049863,120]
[377169518,1754266263557,-400.0,0.00049863,120]
[377169519,1754266263566,-400.0,0.00049863,120]
[377169520,1754266263576,-638.26,0.00049863,120]
[377169521,1754266263586,-836.44,0.00049863,120]
[377169522,1754266263595,-400.0,0.00049863,120]
[377169523,1754266263605,-400.0,0.00049863,120]
[377169524,1754266263615,-400.0,0.00049863,120]
[377169525,1754266263624,-477.59,0.00049863,120]
[377169526,1754266263634,-583.64,0.00049863,120]
[377169527,1754266263643,-684.05,0.00049863,120]
[377169528,1754266263652,-615.77,0.00049863,120]
[377169529,1754266263662,-584.52,0.00049863,120]
[377169530,1754266263671,-400.0,0.00049863,120]
[377169531,1754266263680,-489.14,0.00049863,120]
[377169532,1754266263690,-400.0,0.00049863,120]
[377169533,1754266263700,-868.81,0.00049863,120]
[377169534,1754266263709,-690.52,0.00049863,60]
[377169535,1754266263719,-420.51,0.00049863,120]
[377169536,1754266263728,-439.87,0.00049863,120]
[377169537,1754266263739,-702.58,0.00049863,120]
[377169538,1754266263748,-400.0,0.00049863,120]
[377169539,1754266263758,-603.37,0.00049863,120]
[377169540,1754266263768,-400.0,0.00049863,120]
[377169541,1754266263778,-555.17,0.00049863,120]
[377169542,1754266263787,-400.0,0.00049863,120]
[377169543,1754266263796,-531.0,0.00049863,120]
[377169544,1754266263806,-445.54,0.00049863,120]
[377169545,1754266263815,-400.0,0.00049863,120]
[377169546,1754266263824,-625.64,0.00049863,120]
[377169547,1754266263834,-1465.42,0.00049863,120]